[Event "Romanian Superleague 2022"]
[Site "Oradea"]
[Date "2022.09.26"]
[Round "6.25"]
[White "Efimenko, Zahar"]
[Black "Sumets, Andrey"]
[Result "1/2-1/2"]
[ECO "D02"]
[WhiteElo "2599"]
[BlackElo "2513"]
[Annotator "TA"]
[PlyCount "85"]
[EventDate "2022.09.21"]
[EventType "team-tourn"]
[EventCountry "ROU"]
[SourceTitle "playchess.com"]
[Source "ChessBase"]
[SourceQuality "1"]
[TimeControl "40/5400+30:1800+30"]

{[%evp 12,85,3,0,12,22,13,22,16,0,0,14,4,0,8,14,10,10,6,6,20,16,12,12,17,0,0,0,0,0,0,0,6,0,0,0,0,0,0,0,0,0,0,0,0,0,0,0,0,0,0,0,0,0,0,0,0,0,0,0,0,0,0,0,0,0,0,0,0,0,0,0,0,0,0,0]} 1. d4 {[%emt 0:00:47]} d5 {[%emt 0:00:40]} 2. Nf3 {[%emt 0:00:10]} Nf6 {[%emt 0:01:43]} 3. Bf4 {[%emt 0:00:36]} c5 {[%emt 0:03:20]} 4. e3 {[%emt 0:00:14]} Nc6 {[%emt 0:00:10]} 5. Nbd2 {[%emt 0:00:26]} e6 {[%emt 0:03:41]} 6. c3 {[%emt 0:03:10]} Be7 {[%emt 0:00:24] 6...Nh5 is a critical line.} 7. h3 {[%emt 0:09:15] The position is equal.} Bd6 {[%emt 0:00:20] D02: 1 d4 d5 2 Nf3 sidelines, including 2...Nf6 3 g3 and 2...Nf6 3 Bf4.} 8. dxc5 {[%emt 0:01:18]} Bxc5 {[%emt 0:01:25]} 9. Bd3 {[%emt 0:00:12]} Bd6 {[%emt 0:11:21]} 10. Bxd6 {[%emt 0:14:49]} Qxd6 {[%emt 0:00:09]} 11. O-O {[%emt 0:00:07]} O-O {[%emt 0:04:16]} 12. Qc2 {[%emt 0:01:11] [#]} Rd8 $146 {[%emt 0:07:30]} ({Predecessor:} 12... Bd7 13. Rad1 Rac8 14. Qb1 Ne5 15. Nxe5 Qxe5 16. e4 Qh5 17. Rfe1 Ba4 18. b3 Bc6 {0-1 (46) Henrichs,T (2486)-Kunin,V (2541) Zuerich 2017}) 13. Rad1 {[%emt 0:01:31]} Bd7 {[%emt 0:09:50]} 14. e4 {[%emt 0:02:20]} h6 {[%emt 0:01:16]} 15. Rfe1 {[%emt 0:15:29] [#] Hoping for e5.} dxe4 {[%emt 0:00:37]} 16. Nxe4 {[%emt 0:00:11]} Nxe4 {[%emt 0:00:29]} 17. Bxe4 {[%emt 0:00:21]} Qc7 {[%emt 0:00:15]} 18. Nd4 {[%emt 0:03:53]} Nxd4 {[%emt 0:03:37]} 19. Rxd4 {[%emt 0:00:31]} Be8 {[%emt 0:00:18]} 20. Red1 {[%emt 0:01:26] Threatening Rxd8.} Rxd4 {[%emt 0:00:09]} 21. Rxd4 {[%emt 0:00:04]} Rc8 {[%emt 0:00:11]} 22. Qd2 {[%emt 0:02:50]} b6 {[%emt 0:01:27]} 23. Bc2 {[%emt 0:03:28]} Kf8 {[%emt 0:11:01]} 24. f4 {[%emt 0:10:16]} Ke7 {[%emt 0:09:44]} 25. Be4 {[%emt 0:04:26]} Rd8 {[%emt 0:02:30]} 26. Rxd8 {[%emt 0:00:40]} (26. Bf3 {is interesting.} Qc5 27. Qe3 Rxd4 28. cxd4 Qb4 29. b3) 26... Qxd8 {[%emt 0:00:07]} 27. Qxd8+ {[%emt 0:00:09]} Kxd8 $11 {[%emt 0:00:03][%mdl 4096] Endgame KB-KB} 28. Kf2 {[%emt 0:00:10]} Ke7 {[%emt 0:00:40]} 29. Ke3 {[%emt 0:00:43]} Kd6 {[%emt 0:00:04]} 30. Kd4 {[%emt 0:00:39]} g5 {[%emt 0:03:50]} 31. g3 {[%emt 0:01:08]} gxf4 {[%emt 0:01:18]} 32. gxf4 {[%emt 0:00:05]} f6 {[%emt 0:00:13]} 33. c4 {[%emt 0:02:48]} a5 {[%emt 0:00:27]} 34. b3 {[%emt 0:00:24]} Bd7 {[%emt 0:01:15] [#] And now ...e5+ would win.} 35. h4 {[%emt 0:00:22]} Be8 {[%emt 0:00:22]} 36. a3 {[%emt 0:00:36][%cal Ba2a3,Ba3b4,Bb4c5][%mdl 32]} Bd7 {[%emt 0:00:32]} 37. b4 {[%emt 0:00:23]} axb4 {[%emt 0:00:06]} 38. axb4 {[%emt 0:00:04]} Be8 {[%emt 0:03:49]} 39. c5+ {[%emt 0:01:05]} bxc5+ {[%emt 0:00:07]} 40. bxc5+ {[%emt 0:00:00]} Kc7 {[%emt 0:00:00]} 41. Bd3 {[%emt 0:02:44]} Bh5 {[%emt 0:06:58]} 42. Bc4 {[%emt 0:00:48]} Bg4 {[%emt 0:00:33]} 43. Bb5 {[%emt 0:01:06] A balanced but interesting game.  Weighted Error Value: White=0.02 (flawless) /Black=0.00 (flawless)} 1/2-1/2

[Event "Romanian Superleague 2022"]
[Site "Oradea"]
[Date "2022.09.26"]
[Round "6.26"]
[White "Cioara, Andrei-Nestor"]
[Black "Baklan, Vladimir"]
[Result "1/2-1/2"]
[ECO "D02"]
[WhiteElo "2407"]
[BlackElo "2578"]
[Annotator "TA"]
[PlyCount "51"]
[EventDate "2022.09.21"]
[EventType "team-tourn"]
[EventCountry "ROU"]
[SourceTitle "playchess.com"]
[Source "ChessBase"]
[SourceQuality "1"]
[TimeControl "40/5400+30:1800+30"]

{[%evp 9,51,0,2,0,0,0,0,0,5,-17,11,11,17,18,27,11,24,14,16,13,8,14,27,9,7,4,46,29,38,41,34,33,40,0,0,0,14,0,10,10,2,14,16,8]} 1. d4 {[%emt 0:00:03]} Nf6 {[%emt 0:00:04]} 2. Nf3 {[%emt 0:01:49]} e6 {[%emt 0:02:38]} 3. Bf4 {[%emt 0:01:36]} d5 {[%emt 0:04:01]} 4. e3 {[%emt 0:00:45]} c5 {[%emt 0:00:27]} 5. c3 {[%emt 0:02:16]} Bd6 {[%emt 0:00:16]} 6. Bxd6 {[%emt 0:07:32] D02: 1 d4 d5 2 Nf3 sidelines, including 2...Nf6 3 g3 and 2...Nf6 3 Bf4.} Qxd6 {[%emt 0:00:25]} 7. Ne5 {[%emt 0:00:05]} Nbd7 {[%emt 0:05:27]} 8. f4 {[%emt 0:00:42]} Qb6 {[%emt 0:01:25] [#]} 9. Qb3 $146 {[%emt 0:04:35]} ({Predecessor:} 9. Qc1 Nxe5 10. fxe5 Ng4 11. Na3 O-O 12. Be2 f5 13. Nb5 Bd7 14. Nd6 Nh6 15. O-O {1-0 (59) Burghoff,S-Reitz,M corr 1998}) 9... O-O {[%emt 0:20:22]} 10. Qxb6 {[%emt 0:08:03]} axb6 {[%emt 0:00:10]} 11. Bd3 {[%emt 0:01:15]} Nxe5 {[%emt 0:11:26]} 12. fxe5 {[%emt 0:00:21]} Ng4 {[%emt 0:00:03]} 13. Ke2 $1 {[%emt 0:00:37]} f6 {[%emt 0:06:16] [#] White must now prevent ...c4.} 14. h3 {[%emt 0:00:32]} Nh6 {[%emt 0:00:03]} 15. exf6 {[%emt 0:03:29]} gxf6 {[%emt 0:00:04]} 16. Nd2 {[%emt 0:00:38]} Bd7 {[%emt 0:00:09]} 17. Rhf1 {[%emt 0:05:51][%cal Bh1f1,Bf1f3,Bf3g3][%mdl 32]} Rae8 {[%emt 0:04:10]} 18. Rf3 {[%emt 0:10:26]} e5 {[%emt 0:02:12]} 19. dxe5 {[%emt 0:00:06]} Rxe5 {[%emt 0:00:16]} 20. Raf1 {[%emt 0:18:53]} Rfe8 {[%emt 0:10:10]} 21. Rg3+ {[%emt 0:00:25]} Kf7 {[%emt 0:00:06] The position is equal.} 22. Rgf3 {[%emt 0:10:32]} ({Much weaker is} 22. Bxh7 Bf5 23. Rxf5 (23. Bxf5 Nxf5 24. Rxf5 Rxf5 $17) 23... Nxf5 24. Bg6+ Ke6 25. Bxf5+ Rxf5 $17) 22... Kg7 {[%emt 0:01:45]} 23. Rg3+ {[%emt 0:00:16]} Rg5 {[%emt 0:01:23]} 24. Rxg5+ {[%emt 0:06:41]} fxg5 {[%emt 0:00:15]} 25. Rf2 {[%emt 0:06:46]} Re7 {[%emt 0:18:48]} (25... g4 $5 {[%cal Rg4h3]}) 26. Nf1 {[%emt 0:09:16] Weighted Error Value: White=0.05 (flawless) /Black=0.07 (flawless)} 1/2-1/2

[Event "Romanian Superleague 2022"]
[Site "Oradea"]
[Date "2022.09.26"]
[Round "6.27"]
[White "Rogozenco, Dorian"]
[Black "Stepanencu, Nicodim-Cosmin"]
[Result "1/2-1/2"]
[ECO "D17"]
[WhiteElo "2438"]
[BlackElo "2289"]
[Annotator "TA"]
[PlyCount "88"]
[EventDate "2022.09.21"]
[EventType "team-tourn"]
[EventCountry "ROU"]
[SourceTitle "playchess.com"]
[Source "ChessBase"]
[SourceQuality "1"]
[TimeControl "40/5400+30:1800+30"]

{[%evp 15,88,27,22,21,17,19,24,16,18,19,25,25,29,20,25,15,15,15,19,8,29,6,45,41,88,91,164,150,143,100,93,94,169,169,218,227,258,260,260,267,254,253,250,207,207,218,226,225,276,258,265,197,230,0,152,156,177,97,139,0,120,0,0,0,0,0,0,0,0,0,0,0,0,0,0]} 1. d4 {[%emt 0:00:05]} d5 {[%emt 0:00:05]} 2. c4 {[%emt 0:00:27]} c6 {[%emt 0:00:05]} 3. Nf3 {[%emt 0:00:11]} Nf6 {[%emt 0:00:05]} 4. Nc3 {[%emt 0:00:19]} dxc4 {[%emt 0:00:10]} 5. a4 {[%emt 0:00:21]} Bf5 {[%emt 0:00:04]} 6. Ne5 {[%emt 0:00:36]} Nbd7 {[%emt 0:00:07]} 7. Nxc4 {[%emt 0:00:35]} Nb6 {[%emt 0:00:04]} 8. Ne5 {[%emt 0:00:51]} a5 {[%emt 0:00:08]} 9. f3 {[%emt 0:00:29] D17: Slav Defence: 5 a4 Bf5: Lines with 6 Nh4 and 6 Ne5.} Nfd7 {[%emt 0:00:20]} 10. Nxd7 {[%emt 0:00:21]} Nxd7 {[%emt 0:00:11] 10...Bxd7 is the modern continuation.} 11. e4 {[%emt 0:00:24] White has an edge.} Bg6 {[%emt 0:00:06]} 12. Be2 {[%emt 0:07:47]} e6 {[%emt 0:27:24] 12...Qb6 is vanishing.} 13. O-O {[%emt 0:01:23]} Bb4 {[%emt 0:00:09]} 14. Be3 {[%emt 0:02:35]} O-O {[%emt 0:00:12]} 15. Kh1 {[%emt 0:01:03] [#]} Kh8 $146 {[%emt 0:01:38]} ({Predecessor:} 15... Qe7 16. Qb3 f5 17. Na2 Kh8 18. Nxb4 Qxb4 19. Qxb4 axb4 20. Bd2 fxe4 21. Bxb4 exf3 22. Rxf3 Rxf3 23. Bxf3 {½-½ (87) Postny,E (2571)-Fontaine,R (2507) Stockholm 2005}) 16. Qb3 {[%emt 0:08:31]} f5 {[%emt 0:21:48]} 17. e5 {[%emt 0:02:30]} ({Of course not} 17. Qxe6 Nf6 $15) 17... f4 {[%emt 0:04:22]} 18. Bf2 {[%emt 0:07:27]} Qe7 {[%emt 0:02:24]} (18... Nb6 {looks sharper.} 19. Qxe6 Nd5 20. Nxd5 Bf5) 19. Bc4 {[%emt 0:12:56]} Rfe8 {[%emt 0:17:43]} (19... Bf7 $14 {might be stronger.}) 20. Na2 $16 {[%emt 0:04:04]} b5 {[%emt 0:02:03]} (20... Nb6 $16 {might work better.}) 21. axb5 $18 {[%emt 0:09:36]} cxb5 {[%emt 0:00:01]} 22. Bxb5 {[%emt 0:02:40]} Rab8 {[%emt 0:00:27]} 23. Ba4 {[%emt 0:14:41] White is more active.} Red8 {[%emt 0:12:51]} (23... Be1 $16 24. Qd1 Bxf2 25. Rxf2 Red8) 24. Nxb4 {[%emt 0:07:22]} Rxb4 {[%emt 0:00:03]} (24... axb4 {was called for.} 25. Rfc1 Nb6) 25. Qa3 $1 {[%emt 0:00:01] aiming for Be1.} Nb6 {[%emt 0:08:15][%cal Bd7b6,Bb6c4,Bc4e3][%mdl 32]} 26. Be1 {[%emt 0:06:06] This bishop pair is nice.} Nc4 {[%emt 0:00:01]} 27. Bxb4 {[%emt 0:00:04]} axb4 {[%emt 0:00:02] [#]} 28. Qa2 {[%emt 0:00:04]} Ne3 {[%emt 0:01:18]} 29. Rf2 {[%emt 0:00:01]} Rxd4 {[%emt 0:02:12]} 30. Bb3 {[%emt 0:00:06][%cal Ba4b3,Bb3e6,Be6g8][%mdl 32]} h5 {[%emt 0:00:39]} 31. Bxe6 {[%emt 0:06:58]} Kh7 {[%emt 0:00:01]} 32. Bg8+ {[%emt 0:00:49]} Kh6 {[%emt 0:00:06]} 33. Qe6 {[%emt 0:00:22]} Qa7 {[%emt 0:00:40] [#]} 34. Qa2 {[%emt 0:04:25]} (34. Rxa7 $2 {gets mated.} Rd1+) (34. Re1 $1 $18) 34... Qc5 $2 {[%emt 0:01:08]} (34... Qe7 $1 $11) 35. Bb3 {[%emt 0:01:09]} (35. Qe6 {is a self mate.} Rd1+ 36. Rxd1 Nxd1) 35... Qxe5 {[%emt 0:00:32]} 36. Qa6 {[%emt 0:00:30]} (36. Qa8 $18) 36... Rd6 {[%emt 0:00:25]} 37. Qe2 {[%emt 0:00:27]} (37. Qc8 $16) 37... Qd4 {[%emt 0:00:39]} (37... Rd3 $11 {keeps the balance.} 38. Bf7 Bf5) 38. Re1 {[%emt 0:00:27]} ({White should play} 38. Qe1 $16) 38... Bd3 $1 $11 {[%emt 0:00:31] The position is equal.} 39. Qd2 {[%emt 0:00:01]} Qb6 $1 {[%emt 0:00:30]} 40. Qc1 {[%emt 0:00:00] Prevents Bc4.} Rc6 $1 {[%emt 0:00:00]} 41. Qd2 {[%emt 0:03:23]} Rd6 {[%emt 0:02:24] And now ...Bc4 would win.} 42. Qc1 {[%emt 0:04:47] Against Bc4} Rc6 $1 {[%emt 0:04:58]} 43. Qd2 {[%emt 0:00:15]} Rd6 {[%emt 0:00:33] Strongly threatening ...Bc4.} 44. Qc1 {[%emt 0:00:30] Prevents Bc4. Threatens to win with Rd2.} Rc6 $1 {[%emt 0:00:52] Black defended with fortune.  Weighted Error Value: White=0.34/Black=0.24 (precise)} 1/2-1/2

[Event "Romanian Superleague 2022"]
[Site "Oradea"]
[Date "2022.09.26"]
[Round "6.28"]
[White "Vajda, Albert"]
[Black "Manolache, Marius"]
[Result "0-1"]
[ECO "C00"]
[WhiteElo "2305"]
[BlackElo "2455"]
[Annotator "ChessBase"]
[PlyCount "110"]
[EventDate "2022.09.21"]
[EventType "team-tourn"]
[EventCountry "ROU"]
[SourceTitle "playchess.com"]
[Source "ChessBase"]
[SourceQuality "1"]
[TimeControl "40/5400+30:1800+30"]

1. e4 {[%emt 0:00:03]} c5 {[%emt 0:00:06]} 2. Nf3 {[%emt 0:00:23]} e6 {[%emt 0:00:07]} 3. d3 {[%emt 0:01:12]} Nc6 {[%emt 0:00:44]} 4. g3 {[%emt 0:00:25]} Nf6 {[%emt 0:01:30]} 5. Bg2 {[%emt 0:00:19]} d5 {[%emt 0:01:15]} 6. Nbd2 {[%emt 0:00:31]} Be7 {[%emt 0:00:23]} 7. O-O {[%emt 0:00:38]} O-O {[%emt 0:00:31]} 8. e5 {[%emt 0:01:30]} Nd7 {[%emt 0:00:47]} 9. Re1 {[%emt 0:00:21]} Qc7 {[%emt 0:00:23]} 10. Qe2 {[%emt 0:00:27]} b5 {[%emt 0:01:19]} 11. Nf1 {[%emt 0:01:36]} Bb7 {[%emt 0:00:32]} 12. Bf4 {[%emt 0:03:41]} Rfc8 {[%emt 0:00:07]} 13. h4 {[%emt 0:04:39]} Qd8 {[%emt 0:00:10]} 14. N1h2 {[%emt 0:12:23]} Nf8 {[%emt 0:06:11]} 15. Ng4 {[%emt 0:06:59]} a5 {[%emt 0:19:10]} 16. h5 {[%emt 0:03:23]} Ra6 {[%emt 0:04:15]} 17. Qd2 {[%emt 0:06:45]} Nd4 {[%emt 0:06:56]} 18. Ng5 {[%emt 0:07:47]} h6 {[%emt 0:05:19]} 19. Nh3 {[%emt 0:00:38]} Nh7 {[%emt 0:00:13]} 20. Ne3 {[%emt 0:09:18]} a4 {[%emt 0:13:26]} 21. Qd1 {[%emt 0:01:34]} a3 {[%emt 0:02:14]} 22. b3 {[%emt 0:00:19]} b4 {[%emt 0:04:12]} 23. g4 {[%emt 0:02:34]} Ba8 {[%emt 0:06:29]} 24. Bh2 {[%emt 0:03:00]} Nb5 {[%emt 0:04:51]} 25. Nf4 {[%emt 0:03:24]} Nc3 {[%emt 0:01:04]} 26. Qd2 {[%emt 0:00:20]} Bg5 {[%emt 0:00:12]} 27. Nd1 {[%emt 0:02:13]} Nb5 {[%emt 0:03:02]} 28. f3 {[%emt 0:03:17]} Nd4 {[%emt 0:00:45]} 29. Ne3 {[%emt 0:04:54]} c4 {[%emt 0:03:39]} 30. Qf2 {[%emt 0:00:27]} Bh4 {[%emt 0:00:35]} 31. Bg3 {[%emt 0:00:07]} Bxg3 {[%emt 0:00:12]} 32. Qxg3 {[%emt 0:00:07]} cxb3 {[%emt 0:02:05]} 33. cxb3 {[%emt 0:00:08]} Rc3 {[%emt 0:00:32]} 34. Rad1 {[%emt 0:02:18]} Qb6 {[%emt 0:02:16]} 35. Qf2 {[%emt 0:01:33]} Ng5 {[%emt 0:01:18]} 36. Kf1 {[%emt 0:00:52]} Qc5 {[%emt 0:01:45]} 37. Rd2 {[%emt 0:02:05]} Rc6 {[%emt 0:01:13]} 38. Ne2 {[%emt 0:00:39]} Nxe2 {[%emt 0:02:42]} 39. Rexe2 {[%emt 0:00:27]} Rc1+ {[%emt 0:01:10]} 40. Nd1 {[%emt 0:00:00]} Bb7 {[%emt 0:00:00]} 41. f4 {[%emt 0:04:41]} Nh7 {[%emt 0:04:11]} 42. Qxc5 {[%emt 0:00:27]} R6xc5 {[%emt 0:00:08]} 43. Kf2 {[%emt 0:00:23]} Ba6 {[%emt 0:00:26]} 44. Bf1 {[%emt 0:07:41]} Nf8 {[%emt 0:09:14]} 45. Ne3 {[%emt 0:02:51]} R5c3 {[%emt 0:02:37]} 46. Re1 {[%emt 0:00:17]} d4 {[%emt 0:00:30]} 47. Nc4 {[%emt 0:00:48]} Rxe1 {[%emt 0:07:55]} 48. Kxe1 {[%emt 0:00:07]} Nd7 {[%emt 0:00:06]} 49. Kd1 {[%emt 0:08:05]} Nc5 {[%emt 0:00:37]} 50. Be2 {[%emt 0:00:06]} Bxc4 {[%emt 0:02:24]} 51. dxc4 {[%emt 0:00:26]} d3 {[%emt 0:00:09]} 52. Bf3 {[%emt 0:00:30]} Nxb3 {[%emt 0:01:17]} 53. axb3 {[%emt 0:00:12]} Rxb3 {[%emt 0:00:04]} 54. Kc1 {[%emt 0:03:03]} Rc3+ {[%emt 0:00:19]} 55. Kb1 {[%emt 0:00:13]} b3 {[%emt 0:00:06]} 0-1

[Event "Romanian Superleague 2022"]
[Site "Oradea"]
[Date "2022.09.26"]
[Round "6.29"]
[White "Anton, Teodor"]
[Black "Balla, Tamas-Kristof"]
[Result "1/2-1/2"]
[ECO "A09"]
[WhiteElo "2454"]
[BlackElo "2325"]
[Annotator "TA"]
[PlyCount "154"]
[EventDate "2022.09.21"]
[EventType "team-tourn"]
[EventCountry "ROU"]
[SourceTitle "playchess.com"]
[Source "ChessBase"]
[SourceQuality "1"]
[TimeControl "40/5400+30:1800+30"]

{[%evp 15,154,0,0,-38,-30,-38,-28,-41,-41,-40,-39,-50,-32,-36,-45,-56,-29,-30,-34,-37,0,-37,9,1,11,-10,-15,-12,2,0,13,0,0,0,8,10,18,0,0,0,0,0,0,0,27,40,44,43,39,33,43,21,28,16,16,16,16,0,0,0,0,0,0,0,0,0,0,0,0,0,0,0,0,0,0,0,0,0,12831,12829,1142,1205,27999,27999,27999,27999,27999,0,27999,27999,27994,0,0,0,0,0,0,0,0,0,0,0,0,0,0,0,0,0,0,0,0,0,0,0,0,0,0,0,0,0,0,0,0,0,0,0,0,0,0,0,0,0,0,0,0,0,0,0,0,0,0]} 1. Nf3 {[%emt 0:00:04]} d5 {[%emt 0:01:06]} 2. g3 {[%emt 0:00:23]} Nf6 {[%emt 0:00:16]} 3. Bg2 {[%emt 0:00:08]} c5 {[%emt 0:00:11]} 4. O-O {[%emt 0:00:17]} Nc6 {[%emt 0:00:24]} 5. c4 {[%emt 0:01:11]} d4 {[%emt 0:00:49]} 6. e3 {[%emt 0:00:09]} e5 {[%emt 0:00:27]} 7. exd4 {[%emt 0:00:11]} exd4 {[%emt 0:00:06]} 8. d3 {[%emt 0:00:30]} Be7 {[%emt 0:00:26]} 9. a3 {[%emt 0:02:57][%cal Ob2b4] A09: Réti Opening: 1 Nf3 d5 2 c4.} O-O {[%emt 0:02:04]} 10. Re1 {[%emt 0:02:31]} h6 {[%emt 0:10:57] [#]} 11. Ne5 $146 {[%emt 0:01:34] Black has an edge.} ({Predecessor:} 11. Nbd2 a5 12. Ne5 Nxe5 13. Rxe5 Qc7 14. Re1 Bg4 15. Qb3 Rab8 16. Ne4 Nxe4 17. Bxe4 {½-½ (27) Golubov,S (2492)-Buhmann,R (2625) Moscow 2017}) 11... Nxe5 {[%emt 0:01:00]} 12. Rxe5 {[%emt 0:00:04]} Bd6 {[%emt 0:00:26]} 13. Re1 {[%emt 0:00:15]} Bg4 {[%emt 0:04:26]} 14. Bf3 {[%emt 0:04:21]} Qd7 {[%emt 0:00:54]} 15. Bxg4 {[%emt 0:12:03]} Qxg4 {[%emt 0:03:34]} 16. Nd2 {[%emt 0:06:30][%cal Bb1d2,Bd2f3,Bf3e1,Be1d3][%mdl 32]} Qxd1 {[%emt 0:07:03]} 17. Rxd1 {[%emt 0:00:03][%cal Ob2b4]} Rfe8 {[%emt 0:00:06]} 18. Nf3 {[%emt 0:02:10][%cal Ob2b4]} (18. b4 $5) 18... Re2 {[%emt 0:03:26]} (18... a5 $15) 19. Kf1 $11 {[%emt 0:04:04]} Rae8 {[%emt 0:00:35]} 20. Re1 {[%emt 0:00:17]} Rxe1+ {[%emt 0:06:02]} 21. Nxe1 {[%emt 0:01:13]} a6 {[%emt 0:00:33]} 22. Rb1 {[%emt 0:03:00]} b5 {[%emt 0:09:48]} 23. b4 {[%emt 0:01:18]} bxc4 {[%emt 0:15:33]} 24. dxc4 {[%emt 0:00:28]} Rb8 {[%emt 0:00:15]} 25. Nd3 {[%emt 0:01:16]} Ne4 {[%emt 0:01:28]} 26. Rb2 {[%emt 0:01:23] Black must now prevent f3.} Rc8 $1 {[%emt 0:04:55]} 27. b5 {[%emt 0:03:14]} axb5 {[%emt 0:00:19]} 28. Rxb5 {[%emt 0:00:09]} Kf8 {[%emt 0:01:22]} 29. f3 {[%emt 0:05:45]} Nf6 {[%emt 0:02:23]} (29... Nc3 $5 {[%cal Rc3b5]} 30. Ra5 Re8 $11) 30. a4 {[%emt 0:02:25][%cal Ba3a4,Ba4a5][%mdl 32]} Ke8 {[%emt 0:02:17]} 31. Ba3 {[%emt 0:01:20][%cal Ra3c5]} Nd7 {[%emt 0:02:32]} 32. a5 {[%emt 0:00:54]} Rc6 {[%emt 0:01:59]} 33. f4 {[%emt 0:00:42]} f5 {[%emt 0:00:49]} 34. Ke2 {[%emt 0:00:21]} Kd8 {[%emt 0:00:50]} 35. Kf3 {[%emt 0:00:48]} h5 {[%emt 0:00:33]} 36. a6 {[%emt 0:06:03]} Rxa6 {[%emt 0:03:20]} 37. Bxc5 {[%emt 0:00:35]} Nxc5 {[%emt 0:11:12]} 38. Nxc5 {[%emt 0:00:09][%mdl 4096] Endgame KRB-KRN} Ra3+ {[%emt 0:00:09]} 39. Ke2 {[%emt 0:01:02] Hoping for Ne6+.} Ra2+ {[%emt 0:04:47]} 40. Kd3 {[%emt 0:00:00]} Bxc5 {[%emt 0:00:00]} 41. Rxc5 {[%emt 0:00:18] Strongly threatening Rd5+. KR-KR} g6 {[%emt 0:01:16]} 42. Rc6 {[%emt 0:01:11]} Rxh2 {[%emt 0:00:40]} 43. Rxg6 {[%emt 0:00:09]} h4 $1 {[%emt 0:00:06]} 44. Kxd4 {[%emt 0:08:18] aiming for gxh4.} Rg2 {[%emt 0:05:40]} 45. Ke5 {[%emt 0:15:40]} Rxg3 {[%emt 0:06:23]} 46. Rh6 {[%emt 0:01:49]} (46. Kxf5 Rxg6 47. Kxg6 h3 48. Kg5 h2 49. c5 h1=Q 50. Kf5 Qc6 51. Ke5 Qxc5+ 52. Ke4 Ke7 53. Kf3 Ke6 54. Ke4 Qc4+ 55. Ke3 Kf5 56. Kf3 Qd3+ 57. Kg2 Kxf4 58. Kh2 Qc2+ 59. Kh1 Kg3 60. Kg1 Qg2#) 46... Re3+ $2 {[%emt 0:03:28][%mdl 8192]} (46... h3 $11) 47. Kxf5 $18 {[%emt 0:00:53]} Rc3 {[%emt 0:02:32]} 48. Ke6 $1 {[%emt 0:02:16]} Rxc4 {[%emt 0:02:08] [#]} 49. Rh8+ $1 {[%emt 0:00:14]} Kc7 {[%emt 0:00:12]} 50. f5 {[%emt 0:02:54]} Re4+ {[%emt 0:02:57] [#]} 51. Kd5 $2 {[%emt 0:12:22]} (51. Kf7 $1 Kd7 52. f6) 51... Rf4 {[%emt 0:01:54]} 52. Ke5 {[%emt 0:00:05]} Rf3 {[%emt 0:01:18]} 53. Ke6 $2 {[%emt 0:00:29]} (53. Rxh4 Kd7 54. Rh7+ Ke8 55. Kf6) 53... Re3+ $11 {[%emt 0:01:17] The position is equal.} 54. Kf7 {[%emt 0:02:16]} h3 {[%emt 0:01:14]} 55. f6 {[%emt 0:00:25]} Kd7 {[%emt 0:02:09]} 56. Rh7 {[%emt 0:02:18] And now Kg8+ would win.} Rg3 {[%emt 0:04:47]} 57. Rh6 {[%emt 0:06:33]} Kd6 {[%emt 0:00:46]} 58. Rh8 {[%emt 0:01:55]} Kd7 {[%emt 0:00:34]} 59. Rh7 {[%emt 0:00:06]} Kd8 {[%emt 0:00:27]} 60. Rh4 {[%emt 0:01:04]} Kd7 {[%emt 0:00:12]} 61. Rh8 {[%emt 0:00:09]} Rf3 {[%emt 0:00:18]} 62. Rh7 {[%emt 0:01:07]} Kd6 {[%emt 0:00:50]} 63. Rh6 {[%emt 0:01:31]} Ke5 {[%emt 0:00:57]} 64. Ke7 {[%emt 0:09:17] f7 is the strong threat.} Kf5 {[%emt 0:00:19]} 65. f7 {[%emt 0:01:14]} Kg4 {[%emt 0:00:06]} 66. Rg6+ {[%emt 0:00:09]} Kh5 {[%emt 0:01:07]} 67. Rf6 {[%emt 0:00:19]} Re3+ $1 {[%emt 0:00:25]} 68. Re6 {[%emt 0:05:47]} Rf3 {[%emt 0:00:08]} (68... Rxe6+ {leads to mate.} 69. Kxe6 Kh4 70. f8=Q Kg3 71. Qf1 h2 72. Kf5 h1=B 73. Qxh1) 69. Rf6 {[%emt 0:00:10]} Re3+ $1 {[%emt 0:00:08]} 70. Kd6 {[%emt 0:00:34]} Rd3+ {[%emt 0:00:10]} 71. Ke5 {[%emt 0:00:42]} Rd8 {[%emt 0:00:14]} 72. f8=Q {[%emt 0:00:44]} Rxf8 {[%emt 0:00:05]} 73. Rxf8 {[%emt 0:00:04]} Kg4 {[%emt 0:00:09]} 74. Ke4 {[%emt 0:01:00]} h2 {[%emt 0:01:34]} 75. Rg8+ {[%emt 0:00:03]} Kh3 {[%emt 0:00:08]} 76. Rh8+ {[%emt 0:00:04]} Kg2 {[%emt 0:00:05]} 77. Rxh2+ {[%emt 0:00:03]} Kxh2 {[%emt 0:00:04] Black defended with fortune.  Weighted Error Value: White=0.23 (precise) /Black=0.23 (precise)} 1/2-1/2